bitfinex/quotes_SOLUSD_20250403
["timestamp","ask_amount","ask_price","bid_price","bid_amount"]
[1743707783864,46.58091508,115.53,115.48,10.2597]
[1743707784061,26.58091508,115.52,115.48,10.2597]
[1743707784361,46.58091508,115.53,115.48,36.84061508]
[1743707785071,55.23681508,115.53,115.48,36.84061508]
[1743707785391,20.0,115.57,115.51,26.58091508]
[1743707785565,46.58091508,115.57,115.52,26.58091508]
[1743707786796,26.58091508,115.56,115.51,26.58091508]
[1743707787000,26.58091508,115.56,115.5,8.658]
[1743707787001,35.23471508,115.56,115.5,8.658]
[1743707787166,35.23471508,115.56,115.51,26.58091508]
[1743707788092,35.23471508,115.56,115.5,8.658]
[1743707788093,26.58091508,115.55,115.5,35.23891508]
[1743707788690,35.23471508,115.56,115.51,26.58091508]
[1743707788875,26.58091508,115.56,115.51,26.58091508]
[1743707789186,35.23441508,115.56,115.52,8.6565]
[1743707789589,171.23441508,115.56,115.52,8.6565]
[1743707790095,26.58091508,115.55,115.52,8.6565]
[1743707790597,46.58091508,115.55,115.51,8.6569]
[1743707791471,55.23531508,115.55,115.49,8.6587]
[1743707791782,63.41531508,115.55,115.5,26.58091508]
[1743707792097,162.58091508,115.54,115.49,35.23961508]
[1743707792976,26.58091508,115.53,115.49,8.6587]
[1743707793371,26.58091508,115.53,115.48,28.18151508]
[1743707793372,55.23691508,115.53,115.48,10.2597]
[1743707793599,26.58091508,115.51,115.45,18.64964886]
[1743707793772,26.58091508,115.5,115.45,56.89691508]
[1743707793974,8.18,115.51,115.46,26.58091508]
[1743707793975,34.76091508,115.51,115.46,26.58091508]
[1743707794295,190.76091508,115.51,115.46,26.58091508]
[1743707794490,26.58091508,115.5,115.46,26.58091508]
[1743707795000,54.76091508,115.51,115.46,26.58091508]
[1743707795302,26.58091508,115.5,115.45,30.316]
[1743707795472,26.58091508,115.5,115.45,56.89691508]
[1743707795971,26.58091508,115.48,115.44,8.6621]
[1743707796169,20.0,115.49,115.44,8.6621]
[1743707796170,26.58091508,115.47,115.44,8.6621]
[1743707796586,26.58091508,115.47,115.43,26.58091508]
[1743707796587,26.58091508,115.47,115.43,8.6628]
[1743707796894,26.58091508,115.46,115.42,8.6636]
[1743707797071,26.58091508,115.46,115.42,35.24451508]
[1743707797505,35.24201508,115.46,115.41,10.2002]
[1743707797707,26.58091508,115.43,115.39,8.6662]
[1743707797877,26.58091508,115.43,115.39,35.24711508]
[1743707798070,26.58091508,115.44,115.4,26.58091508]
[1743707798701,182.58091508,115.45,115.41,26.58091508]
[1743707799202,182.58091508,115.45,115.4,26.58091508]
[1743707799502,182.58091508,115.45,115.41,8.6647]
[1743707800001,182.58091508,115.45,115.41,35.24561508]
[1743707800297,191.24271508,115.45,115.41,35.24561508]
[1743707800490,191.24271508,115.45,115.41,8.6647]
[1743707800812,26.58091508,115.44,115.41,8.6647]
[1743707801419,26.58091508,115.44,115.4,8.6655]
[1743707801711,46.58091508,115.45,115.4,35.24641508]
[1743707802690,46.58091508,115.45,115.4,56.91011508]
[1743707803021,136.0,115.46,115.41,26.58091508]
[1743707803186,162.58091508,115.46,115.41,26.58091508]
[1743707803983,26.58091508,115.45,115.42,8.664]
[1743707804501,35.24271508,115.45,115.41,8.6647]
[1743707804896,26.58091508,115.43,115.38,1.5044]
[1743707805097,34.76091508,115.43,115.38,1.5044]
[1743707805307,34.76091508,115.43,115.39,8.6659]
[1743707805501,26.58091508,115.42,115.38,35.24751508]
[1743707806115,26.58091508,115.42,115.38,8.6666]
[1743707806300,35.24501508,115.42,115.38,8.6666]
[1743707806508,26.58091508,115.41,115.37,35.24821508]
[1743707807327,26.58091508,115.42,115.37,35.24821508]
[1743707807890,35.24491508,115.42,115.37,35.24821508]
[1743707808130,26.58091508,115.41,115.37,8.6673]
[1743707808784,55.24571508,115.41,115.37,8.6673]
[1743707808985,26.58091508,115.4,115.36,8.668]
[1743707809616,26.58091508,115.39,115.35,35.24971508]
[1743707809785,34.76091508,115.39,115.35,35.24971508]
[1743707810185,26.58091508,115.37,115.32,41.98174886]
[1743707810399,26.58091508,115.37,115.33,26.58091508]
[1743707811193,26.58091508,115.37,115.32,23.3321]
[1743707811390,26.58091508,115.37,115.33,8.6707]
[1743707812631,26.58091508,115.37,115.33,35.25161508]
[1743707812928,26.58091508,115.37,115.33,8.6707]
[1743707813533,20.0,115.37,115.33,8.6707]
[1743707813826,26.58091508,115.34,115.29,21.6835]
[1743707814017,34.76091508,115.34,115.29,48.26441508]
[1743707814214,34.76091508,115.34,115.3,26.58091508]
[1743707814421,34.76091508,115.34,115.29,48.26441508]
[1743707815125,26.58091508,115.33,115.29,26.58091508]
[1743707815304,26.58091508,115.33,115.28,35.25541508]
[1743707815849,34.76091508,115.34,115.29,26.58091508]
[1743707816130,26.58091508,115.33,115.29,26.58091508]
[1743707816515,26.58091508,115.33,115.28,35.25541508]
[1743707816707,26.58091508,115.32,115.28,35.25541508]
[1743707817510,35.25241508,115.32,115.28,8.6745]
[1743707817716,26.58091508,115.31,115.28,8.6745]
[1743707818117,8.18,115.3,115.28,8.6745]
[1743707818810,8.18,115.3,115.27,8.6752]
[1743707819010,34.76091508,115.3,115.26,8.6756]
[1743707819228,8.18,115.3,115.26,8.6756]
[1743707819443,34.76091508,115.3,115.26,8.6756]
[1743707819739,43.43391508,115.3,115.26,8.6756]
[1743707820121,34.76091508,115.3,115.26,8.6756]
[1743707820617,46.58091508,115.29,115.25,8.6764]
[1743707820837,182.58091508,115.29,115.25,8.6764]
[1743707821414,26.72307665,115.28,115.23,8.6782]
[1743707821616,26.58091508,115.24,115.22,0.2]
[1743707821819,46.58091508,115.23,115.22,0.2]
[1743707822334,46.72307665,115.23,115.22,0.2]
[1743707822934,65.65704865,115.23,115.22,0.2]
[1743707823371,20.0,115.23,115.22,0.2]
[1743707824921,8.81906157,115.25,115.22,0.2]
[1743707824922,178.75655999,115.25,115.22,0.2]
[1743707825239,186.93655999,115.25,115.22,8.8789]
[1743707825939,42.75655999,115.24,115.22,0.2]
[1743707826129,42.75655999,115.23,115.22,0.2]
[1743707828454,51.43475999,115.23,115.22,0.2]
[1743707828947,70.51089356,115.23,115.22,0.2]
[1743707829150,27.75433357,115.23,115.22,0.2]
[1743707829343,70.51089356,115.23,115.22,0.2]
[1743707830127,70.51089356,115.23,115.22,0.0001]
[1743707830655,20.0,115.19,115.13,8.6854]
[1743707830872,42.75655999,115.17,115.13,8.6854]
[1743707831358,42.75655999,115.16,115.13,8.6854]
[1743707831656,42.75655999,115.17,115.13,8.6854]
[1743707831850,62.75655999,115.17,115.13,8.6854]
[1743707832160,71.43935999,115.17,115.13,8.6854]
[1743707832347,71.43935999,115.17,115.12,51.44275999]
[1743707832543,42.75655999,115.16,115.12,8.6862]
[1743707833052,71.43935999,115.17,115.12,51.44275999]
[1743707833559,42.75655999,115.13,115.1,8.688]
[1743707833867,42.75655999,115.13,115.09,8.6884]
[1743707834162,42.75655999,115.12,115.09,8.6884]
[1743707835038,198.75655999,115.13,115.09,8.6884]
[1743707836450,42.75655999,115.12,115.08,10.2305]
[1743707836654,207.44245999,115.13,115.08,52.98705999]
[1743707836840,156.0,115.13,115.09,42.75655999]
[1743707837357,156.0,115.13,115.08,31.9545]
[1743707837358,198.75655999,115.13,115.08,74.71105999]
[1743707837550,207.44245999,115.13,115.08,52.98705999]
[1743707837854,42.75655999,115.12,115.08,8.6892]
[1743707838235,178.75655999,115.12,115.07,51.44675999]
[1743707838435,178.75655999,115.12,115.07,8.6902]
[1743707838436,42.75655999,115.11,115.07,8.6902]
[1743707839576,144.6869,115.12,115.07,51.44675999]
[1743707839755,187.44345999,115.12,115.07,51.44675999]
[1743707839942,42.75655999,115.11,115.07,8.6902]
[1743707840142,198.75655999,115.11,115.07,8.6902]
[1743707840340,26.0,115.05,114.99,8.0878]
[1743707840537,42.75655999,115.05,114.99,8.0878]
[1743707840879,42.75655999,115.04,114.99,59.54005999]
[1743707841047,42.75655999,115.02,114.96,8.0878]
[1743707841244,207.09872156,115.01,114.94,8.6998]
[1743707841460,234.72749356,115.01,114.93,8.7005]
[1743707841768,98.72749356,115.01,114.94,8.6997]
[1743707841948,98.72749356,115.01,114.94,51.45625999]
[1743707842154,79.65135999,115.01,114.95,51.45575999]
[1743707842362,79.65135999,115.01,114.95,8.6992]
[1743707842563,79.65135999,115.01,114.94,51.45655999]
[1743707843164,79.65135999,115.01,114.95,8.6993]
[1743707843787,70.95655999,115.01,114.97,8.6975]
[1743707843990,8.2,115.01,114.99,8.6963]
[1743707844160,26.0,115.01,114.99,8.6963]
[1743707844674,26.0,115.01,114.98,51.45335999]
[1743707844979,26.0,115.01,114.98,8.6968]
[1743707845346,26.0,115.01,114.99,8.696]
[1743707845559,42.75655999,115.03,115.0,8.8955]
[1743707845781,50.95655999,115.04,115.0,8.8955]
[1743707845962,20.0,115.05,115.0,51.65205999]
[1743707845963,62.75655999,115.05,115.0,51.65205999]
[1743707846161,136.0,115.06,115.01,42.75655999]
[1743707846361,178.75655999,115.06,115.01,42.75655999]
[1743707846556,136.0,115.06,115.02,42.75655999]
[1743707846871,178.75655999,115.06,115.01,42.75655999]
[1743707847270,20.0,115.05,115.01,42.75655999]
[1743707847477,42.75655999,115.03,115.0,8.8955]
[1743707847850,62.75655999,115.03,115.0,0.2]
[1743707848083,42.75655999,115.01,115.0,0.2]
[1743707848254,136.0,115.02,115.0,0.2]
[1743707848456,20.0,115.03,115.0,0.2]
[1743707848981,20.0,115.03,115.0,8.8955]
[1743707849190,186.95655999,115.04,115.0,8.8955]
[1743707849389,59.64935999,115.04,115.0,8.8955]
[1743707849572,42.75655999,115.03,115.0,0.2]
[1743707849887,42.75655999,115.02,115.0,0.2]
[1743707851068,62.75655999,115.03,115.0,0.2]
[1743707851269,62.75655999,115.03,115.0,8.8955]
[1743707851786,62.91576145,115.03,115.0,0.2]
[1743707851995,62.91576145,115.03,115.0,8.8956]
[1743707852187,28.6934,115.03,115.0,0.2]
[1743707852678,42.91576145,115.02,115.0,0.2]
[1743707852990,207.60916145,115.03,115.0,0.2]
[1743707853173,198.91576145,115.03,115.0,0.2]
[1743707853400,42.91576145,115.02,115.0,0.2]
[1743707853894,207.60926145,115.03,115.0,0.2]
[1743707854695,42.91576145,115.02,115.0,0.2]
[1743707855190,42.92224367,115.02,115.0,0.2]
[1743707855568,178.92224367,115.03,115.0,8.8955]
[1743707855780,187.61574367,115.03,115.0,0.2]
[1743707856086,42.92224367,115.02,115.0,0.2]
[1743707856761,26.0,115.01,115.0,0.2]
[1743707858474,34.6948,115.01,115.0,0.2]
[1743707860970,8.6948,115.01,115.0,0.2]
[1743707863106,71.61704367,115.01,115.0,0.2]
[1743707863312,90.69317724,115.01,115.0,0.2]
[1743707864209,116.73317724,115.01,115.0,0.2]
[1743707864927,90.69317724,115.01,115.0,0.2]
[1743707865129,71.61704367,115.01,115.0,0.2]
[1743707865701,90.69317724,115.01,115.0,0.2]
[1743707867192,47.77093357,115.01,115.0,0.2]
[1743707867436,90.69317724,115.01,115.0,0.2]
[1743707867799,74.61345929,115.01,115.0,0.2]
[1743707870600,55.53732572,115.01,115.0,0.2]
[1743707871912,28.6948,115.01,115.0,0.2]
[1743707872111,55.53732572,115.01,115.0,0.2]
[1743707872314,20.0,115.01,115.0,0.2]
[1743707872919,35.53702572,115.02,115.0,0.2]
[1743707873224,63.73622572,115.03,115.0,0.2]
[1743707874006,55.53622572,115.03,115.0,0.2]
[1743707874209,63.73622572,115.03,115.0,0.2]
[1743707874407,36.8937,115.03,115.0,0.2]
[1743707874609,63.73622572,115.03,115.0,0.2]
[1743707875017,199.73622572,115.03,115.0,0.2]
[1743707876135,191.53622572,115.03,115.0,0.2]
[1743707878450,28.6937,115.03,115.0,0.2]
[1743707878943,20.0,115.03,115.0,8.8955]
[1743707879147,28.6934,115.03,115.0,0.2]
[1743707879730,164.2,115.05,115.0,35.73812572]
[1743707880050,26.84252572,115.04,115.0,35.73812572]
[1743707880345,26.84252572,115.04,115.0,0.2]
[1743707880551,8.6933,115.03,115.0,0.2]
[1743707880754,35.53582572,115.03,115.0,0.2]
[1743707881855,35.53552572,115.04,115.0,8.8956]
[1743707882051,55.53472572,115.05,115.0,35.73812572]
[1743707882358,26.84252572,115.04,115.0,35.73812572]
[1743707883060,35.53382572,115.06,115.01,26.84252572]
[1743707883356,35.53382572,115.06,115.02,26.84252572]
[1743707884052,35.53382572,115.06,115.01,26.84252572]
[1743707884227,35.53382572,115.06,115.0,30.6347]
[1743707884420,35.53382572,115.06,115.01,26.84252572]
[1743707884621,156.0,115.09,115.02,45.49217458]
[1743707884846,144.6892,115.09,115.04,26.84252572]
[1743707885043,171.53172572,115.09,115.05,8.6918]
[1743707885346,55.53172572,115.09,115.04,26.84252572]
[1743707885556,26.84252572,115.08,115.03,43.77822572]
[1743707886532,28.6892,115.09,115.04,26.84252572]
[1743707886828,26.84252572,115.08,115.04,26.84252572]
[1743707887029,26.84252572,115.08,115.03,43.77822572]
[1743707887030,26.84252572,115.07,115.03,43.77822572]
[1743707887865,26.84252572,115.07,115.03,16.9357]
[1743707888157,35.53322572,115.07,115.03,16.9357]
[1743707888952,35.53322572,115.07,115.03,43.77822572]
[1743707889255,26.84252572,115.06,115.02,8.6937]
[1743707889643,26.84252572,115.06,115.02,35.53622572]
[1743707889951,191.53322572,115.07,115.02,35.53622572]
[1743707890128,164.6907,115.07,115.03,26.84252572]
[1743707890330,136.0,115.07,115.04,26.84252572]
[1743707890642,144.6904,115.07,115.03,26.84252572]
[1743707891442,55.53292572,115.07,115.01,8.6945]
[1743707891951,55.53292572,115.07,115.02,26.84252572]
[1743707892155,8.6918,115.05,115.01,35.53702572]
[1743707892459,35.53392572,115.06,115.01,35.53702572]
[1743707893935,8.6914,115.06,115.02,35.53632572]
[1743707894138,55.53322572,115.07,115.02,8.6938]
[1743707894532,26.84252572,115.06,115.02,8.6938]
[1743707894732,55.53322572,115.07,115.02,35.53632572]
[1743707894938,191.53322572,115.07,115.02,35.53632572]
[1743707895566,26.84252572,115.06,115.0,26.90884886]
[1743707895863,164.6907,115.07,115.01,26.84252572]
[1743707896073,164.6907,115.07,115.0,26.90884886]
[1743707896074,26.84252572,115.05,115.0,8.2592]
[1743707896259,26.84252572,115.04,115.0,0.2]
[1743707896660,162.84252572,115.04,115.0,0.2]
[1743707896962,26.84252572,115.03,115.0,0.2]
[1743707897159,26.84252572,115.01,115.0,0.2]
[1743707897358,48.42962572,115.01,115.0,0.2]
[1743707897563,73.90615929,115.01,115.0,0.2]
[1743707898140,20.0,114.98,114.93,6.2897]
[1743707898439,136.0,115.0,114.95,26.84252572]
[1743707898757,162.84252572,115.0,114.95,26.84252572]
[1743707898953,136.0,115.0,114.96,26.84252572]
[1743707899150,36.8948,115.01,114.96,26.84252572]
[1743707899366,63.73732572,115.01,114.97,26.84252572]
[1743707899550,8.2,115.01,114.98,26.84252572]
[1743707899752,8.2,115.01,114.97,26.84252572]
[1743707899957,191.53612572,115.03,114.98,26.84252572]
[1743707900263,55.53612572,115.03,114.98,35.53892572]
[1743707900973,8.6936,115.03,114.98,35.53892572]
[1743707901170,171.53532572,115.04,114.99,26.84252572]
[1743707902070,26.84252572,115.03,114.98,8.6964]
[1743707902483,162.84252572,115.04,114.99,26.84252572]
[1743707902883,136.0,115.04,115.01,26.84252572]
[1743707903062,55.53312572,115.07,115.03,26.84252572]
[1743707903262,55.53312572,115.07,115.01,1.5111]
[1743707903459,26.84252572,115.06,115.02,26.84252572]
[1743707903976,28.6906,115.07,115.01,1.5111]
[1743707903977,26.84252572,115.05,115.01,1.5111]
[1743707904777,35.53492572,115.05,115.01,1.5111]
[1743707904981,8.6924,115.05,115.01,37.04842572]
[1743707905158,8.6924,115.05,115.01,28.35362572]
[1743707905686,35.53382572,115.06,115.02,26.84252572]
[1743707906002,55.53322572,115.07,115.02,26.84252572]
[1743707906184,28.6904,115.07,115.03,26.84252572]
[1743707906566,55.53292572,115.07,115.02,26.84252572]
[1743707906890,28.6904,115.07,115.01,10.2058]
[1743707907060,28.6904,115.07,115.03,26.84252572]
[1743707907260,28.6904,115.07,115.03,35.53572572]
[1743707907882,35.53242572,115.08,115.03,35.53572572]
[1743707908182,35.53242572,115.08,115.04,26.84252572]
[1743707908388,26.84252572,115.11,115.06,26.84252572]
[1743707908567,191.04252572,115.12,115.07,26.84252572]
[1743707909088,26.84252572,115.11,115.07,26.84252572]
[1743707909465,35.53022572,115.11,115.07,26.84252572]
[1743707909782,20.0,115.1,115.04,26.84252572]
[1743707909973,26.84252572,115.09,115.04,26.84252572]
[1743707910169,136.0,115.1,115.05,26.84252572]
[1743707910383,136.0,115.1,115.06,26.84252572]
[1743707910580,162.84252572,115.1,115.05,26.84252572]
[1743707910789,162.84252572,115.1,115.06,26.84252572]
[1743707911492,26.84252572,115.09,115.04,26.84252572]
[1743707911792,8.6893,115.09,115.05,26.84252572]
[1743707911979,171.53082572,115.1,115.06,26.84252572]
[1743707912610,144.6883,115.1,115.06,26.84252572]
[1743707912890,182.84252572,115.12,115.07,26.84252572]
[1743707913586,26.84252572,115.11,115.07,26.84252572]
[1743707913983,35.53012572,115.11,115.06,26.84252572]
[1743707914176,35.53012572,115.11,115.06,35.53342572]
[1743707914493,171.52942572,115.12,115.07,26.84252572]
[1743707914864,26.84252572,115.11,115.05,8.6918]
[1743707915089,46.84252572,115.11,115.06,26.84252572]
[1743707915270,46.84252572,115.11,115.03,9.11978471]
[1743707915271,171.52942572,115.12,115.07,26.84252572]
[1743707915692,171.52942572,115.12,115.07,35.53232572]
[1743707915874,63.70862572,115.13,115.08,28.50502572]
[1743707916076,8.6854,115.14,115.1,26.84252572]
[1743707916394,35.52792572,115.14,115.09,26.84252572]
[1743707916598,26.84252572,115.13,115.09,26.84252572]
[1743707916766,26.84252572,115.13,115.08,28.50502572]
[1743707916969,26.84252572,115.12,115.08,1.6625]
[1743707917161,26.84252572,115.12,115.07,33.29042572]
[1743707917371,26.84252572,115.12,115.07,35.53272572]
[1743707917571,26.84252572,115.12,115.07,26.84252572]
[1743707917789,8.688,115.1,115.06,26.84252572]
[1743707918196,35.52992572,115.11,115.06,35.53342572]
[1743707918504,35.52992572,115.11,115.06,26.84252572]
[1743707919176,20.0,115.06,115.0,1.635]
[1743707919395,26.84252572,115.02,114.97,37.04012572]
[1743707920003,35.53692572,115.02,114.97,28.34272572]
[1743707920204,8.6944,115.02,114.98,26.84252572]
[1743707920370,136.0,115.04,115.0,26.84252572]
[1743707920701,144.18,115.04,115.01,26.84252572]
[1743707920892,8.18,115.04,115.0,26.84252572]
[1743707921607,191.53392572,115.06,115.01,26.84252572]
[1743707921816,179.71392572,115.06,115.01,26.84252572]
[1743707922114,144.18,115.06,115.03,42.89049809]
[1743707922279,8.6912,115.06,115.0,18.933972]
[1743707922481,8.6912,115.06,115.02,42.89049809]
[1743707923093,51.58099809,115.07,115.02,42.89049809]
[1743707923292,59.76059809,115.08,115.03,42.89049809]
[1743707923513,42.89049809,115.07,115.01,6.53226157]
[1743707923695,42.89049809,115.07,115.02,42.89049809]
[1743707924099,59.76059809,115.08,115.03,51.58339809]
[1743707926703,59.76059809,115.08,115.03,53.14229809]
[1743707926898,59.76059809,115.08,115.04,42.89049809]
[1743707927204,59.76059809,115.08,115.03,53.14229809]
[1743707927503,42.89049809,115.07,115.03,1.5589]
[1743707929011,51.58129809,115.07,115.03,1.5589]
[1743707929606,42.89049809,115.04,114.99,8.696]
[1743707929909,30.4167,115.07,115.02,42.89049809]
[1743707929910,8.6908,115.07,115.02,42.89049809]
[1743707930208,42.89049809,115.06,115.01,42.89049809]
[1743707930395,42.89049809,115.05,115.0,42.89049809]
[1743707930711,42.89049809,115.06,115.0,42.89049809]
[1743707930911,42.89049809,115.06,114.99,8.696]
[1743707931090,8.6918,115.05,115.0,51.58569809]
[1743707933382,42.89049809,115.04,114.99,8.6964]
[1743707933588,42.89049809,115.04,114.97,23.3552]
[1743707933589,42.89049809,115.03,114.98,51.58719809]
[1743707933783,42.89049809,115.02,114.97,10.3088]
[1743707934520,42.89049809,115.02,114.91,8.7024]
[1743707934521,88.89049809,114.98,114.91,8.7024]
[1743707934813,42.89049809,114.96,114.91,8.7024]
[1743707935018,42.89049809,114.96,114.9,48.27573587]
[1743707935310,62.89049809,114.94,114.9,48.27573587]
[1743707935496,42.89049809,114.93,114.9,40.130221]
[1743707935691,20.0,114.94,114.9,48.833321]
[1743707935692,136.0,114.94,114.9,48.833321]
[1743707935886,136.0,114.94,114.9,91.72381909]
[1743707936305,28.6991,114.96,114.91,42.89049809]
[1743707936306,20.0,114.96,114.91,42.89049809]
[1743707936511,187.07049809,114.97,114.92,42.89049809]
[1743707936725,6.2512,114.99,114.94,42.89049809]
[1743707936887,156.0,115.0,114.95,42.89049809]
[1743707937095,42.89049809,114.99,114.94,42.89049809]
[1743707937401,20.0,114.94,114.87,6.1275]
[1743707937724,71.09049809,114.94,114.89,42.89049809]
[1743707937901,8.2,114.94,114.9,42.89049809]
[1743707938092,136.0,114.95,114.91,42.89049809]
[1743707938293,178.89049809,114.95,114.9,42.89049809]
[1743707938624,8.2,114.97,114.92,42.89049809]
[1743707938916,8.2,114.97,114.93,42.89049809]
[1743707939121,8.2,114.97,114.92,42.89049809]
[1743707939122,51.09049809,114.97,114.92,42.89049809]
[1743707939295,42.89049809,114.97,114.92,42.89049809]
[1743707939488,42.89049809,114.97,114.93,8.7009]
[1743707940502,178.89049809,114.98,114.93,51.59139809]
[1743707941221,136.0,114.98,114.94,42.89049809]
[1743707941417,178.89049809,114.98,114.93,51.59139809]
[1743707941606,136.0,114.98,114.94,42.89049809]
[1743707941917,20.0,115.04,114.97,42.89049809]
[1743707942218,178.89049809,115.05,115.0,42.89049809]
[1743707942426,42.89049809,115.05,115.0,42.89049809]
[1743707943228,62.89049809,115.01,114.93,30.4532]
[1743707943409,42.89049809,114.97,114.93,8.7009]
[1743707943895,42.89049809,114.98,114.93,51.59139809]
[1743707944099,42.89049809,114.99,114.94,42.89049809]
[1743707944298,178.89049809,115.0,114.95,42.89049809]
[1743707944615,42.89049809,115.0,114.95,42.89049809]
[1743707944815,42.89049809,114.99,114.94,42.89049809]
[1743707945130,164.6944,115.02,114.95,42.89049809]
[1743707945335,42.89049809,115.0,114.95,42.89049809]
[1743707945638,42.89049809,115.01,114.97,8.6979]
[1743707946030,42.89049809,115.0,114.97,8.6979]
[1743707946205,42.89049809,115.01,115.0,0.5]
[1743707946522,8.2,115.03,115.0,0.5]
[1743707946724,162.1443,115.06,115.0,0.5]
[1743707946924,42.89049809,115.04,115.0,43.39049809]
[1743707947105,42.89049809,115.04,115.0,0.5]
[1743707947623,42.89049809,115.03,115.0,0.5]
[1743707948011,42.89049809,115.02,115.0,0.5]
[1743707948402,8.6934,115.03,115.0,0.5]
[1743707948403,42.89049809,115.01,115.0,0.5]
[1743707948802,42.89049809,115.02,115.0,0.5]
[1743707951136,136.0,115.03,115.0,0.5]
[1743707951308,42.89049809,115.02,115.0,0.5]
[1743707951505,178.89049809,115.03,115.0,0.5]
[1743707951823,42.89049809,115.05,115.0,52.08599809]
[1743707952028,185.03479809,115.06,115.01,42.89049809]
[1743707952214,42.89049809,115.05,115.0,52.08599809]
[1743707952419,42.89049809,115.04,115.0,0.5]
[1743707952738,42.89049809,115.02,115.0,0.5]
[1743707953033,42.89049809,115.03,115.0,9.1952]
[1743707953728,20.0,115.04,115.0,9.1952]
[1743707954032,178.89049809,115.05,115.0,52.08569809]
[1743707954335,42.89049809,115.05,115.0,9.1952]
[1743707954524,42.89049809,115.05,115.0,52.08569809]
[1743707954907,198.89049809,115.06,115.01,42.89049809]
[1743707955729,42.89049809,115.05,115.02,8.6941]
[1743707956439,42.89049809,115.03,115.0,0.5]
[1743707956742,42.89049809,115.01,115.0,0.5]
[1743707957303,42.89049809,115.02,115.0,0.5]
[1743707958025,42.89049809,115.01,115.0,0.5]
[1743707958621,42.89049809,115.02,115.0,0.5]
[1743707958935,42.89049809,115.01,115.0,0.5]
[1743707959110,20.0,115.02,115.0,0.5]
[1743707959308,62.89049809,115.02,115.0,0.5]
[1743707959511,142.4903,115.03,115.0,0.5]
[1743707959710,20.0,115.06,115.0,43.39049809]
[1743707960033,42.89049809,115.05,115.0,52.08609809]
[1743707960238,42.89049809,115.04,115.0,0.5]
[1743707960449,42.89049809,115.03,115.0,0.5]
[1743707960936,198.89049809,115.04,115.0,0.5]
[1743707961241,136.0,115.04,115.01,42.89049809]
[1743707961612,136.0,115.06,115.01,42.89049809]
[1743707961934,42.89049809,115.06,115.01,42.89049809]
[1743707963139,42.89049809,115.07,115.03,42.89049809]
[1743707963729,42.89049809,115.07,115.02,42.89049809]
[1743707964118,42.89049809,115.06,115.02,8.6941]
[1743707964615,42.89049809,115.05,115.01,53.25099809]
[1743707964815,42.89049809,115.05,115.0,58.41779809]
[1743707965741,42.89049809,115.05,115.0,15.5273]
[1743707966054,42.89049809,115.05,115.0,58.41779809]
[1743707966239,51.58239809,115.05,115.0,52.08569809]
[1743707966442,42.89049809,115.04,115.0,9.1952]
[1743707966624,42.89049809,115.03,115.0,0.5]
[1743707967141,42.89049809,115.04,115.0,0.5]
[1743707967326,42.89049809,115.04,115.0,43.39049809]
[1743707967725,42.89049809,115.04,115.0,52.08609809]
[1743707968055,136.0,115.05,115.01,42.89049809]
[1743707968256,136.0,115.05,115.02,42.89049809]
[1743707968617,136.0,115.05,115.01,42.89049809]
[1743707968921,42.89049809,115.04,115.0,0.5]
[1743707970059,51.58339809,115.04,115.0,0.5]
[1743707971459,42.89049809,115.03,115.0,0.5]
[1743707972231,51.58409809,115.03,115.0,0.5]
[1743707972747,42.89049809,115.01,115.0,0.5]
[1743707973328,42.89049809,115.02,115.0,0.5]
[1743707974633,42.89049809,115.03,115.0,9.1955]
[1743707974852,178.89049809,115.04,115.0,9.1955]
[1743707975869,42.89049809,115.05,115.0,52.08599809]
[1743707976367,51.58239809,115.05,115.0,52.08599809]
[1743707976562,42.89049809,115.04,115.0,9.1955]
[1743707977069,42.89049809,115.04,115.0,52.08599809]
[1743707977250,42.89049809,115.05,115.0,52.08599809]
[1743707977656,42.89049809,115.07,115.02,42.89049809]
[1743707977842,51.57969809,115.09,115.04,42.89049809]
[1743707978467,51.57969809,115.09,115.04,51.58239809]
[1743707978662,34.9511,115.1,115.04,51.58239809]
[1743707978839,42.89049809,115.09,115.04,51.58239809]
[1743707979241,42.89049809,115.1,115.05,42.89049809]
[1743707980073,42.89049809,115.1,115.06,42.89049809]
[1743707980263,42.89049809,115.1,115.06,51.58129809]
[1743707980454,42.89049809,115.09,115.06,8.6908]
[1743707980968,42.89049809,115.1,115.06,8.6908]
[1743707981269,42.89049809,115.1,115.06,51.58129809]